fUSD/lending_fUSD_20240419
["ID","MTS","AMOUNT","RATE_DAILY","PERIOD"]
[322939384,1713535867796,-500.0,0.00015273,2]
[322939385,1713535867807,-539.67,0.00015273,2]
[322939386,1713535867817,-500.0,0.00015273,2]
[322939387,1713535867826,-783.51,0.00015273,2]
[322939388,1713535867836,-500.0,0.00015273,2]
[322939389,1713535867846,-500.0,0.00015273,2]
[322939390,1713535867855,-2818.66,0.00015273,2]
[322939391,1713535867865,-583.41548552,0.00015273,2]
[322939392,1713535867874,-1071.14,0.00015273,2]
[322939393,1713535867883,-500.0,0.00015273,2]
[322939394,1713535867893,-5735.71,0.00015273,2]
[322939395,1713535867902,-500.0,0.00015273,2]
[322939396,1713535867912,-5058.09,0.00015273,2]
[322939397,1713535867922,-758.39,0.00015273,2]
[322939398,1713535867932,-500.0,0.00015273,2]
[322939399,1713535867942,-500.0,0.00015273,2]
[322939400,1713535867953,-500.0,0.00015273,2]
[322939401,1713535867963,-2882.56,0.00015273,2]
[322939402,1713535867973,-500.0,0.00015273,2]
[322939403,1713535867983,-500.0,0.00015273,2]
[322939404,1713535867993,-500.0,0.00015273,2]
[322939405,1713535868112,-1743.21,0.00015273,2]
[322939406,1713535868121,-500.0,0.00015273,2]
[322939407,1713535868132,-500.0,0.00015273,2]
[322939408,1713535868142,-1283.02,0.00015273,2]
[322939409,1713535868151,-500.0,0.00015273,2]
[322939410,1713535868161,-677.05,0.00015273,2]
[322939411,1713535868170,-500.0,0.00015273,2]
[322939412,1713535868180,-500.0,0.00015273,2]
[322939413,1713535868190,-500.0,0.00015273,2]
[322939414,1713535868199,-500.0,0.00015273,2]
[322939415,1713535868209,-500.0,0.00015273,2]
[322939416,1713535868219,-500.0,0.00015273,2]
[322939417,1713535868228,-2729.3,0.00015273,2]
[322939418,1713535868237,-3307.01,0.00015273,2]
[322939419,1713535868247,-500.0,0.00015273,2]
[322939420,1713535868257,-500.0,0.00015273,2]
[322939421,1713535868266,-2909.5,0.00015273,2]
[322939422,1713535868276,-500.0,0.00015273,2]
[322939423,1713535868285,-500.0,0.00015273,2]
[322939424,1713535868294,-2763.44,0.00015273,2]
[322939425,1713535868307,-500.0,0.00015273,2]
[322939426,1713535868317,-500.0,0.00015273,2]
[322939427,1713535868327,-4372.57,0.00015273,2]
[322939428,1713535868337,-500.0,0.00015273,2]
[322939429,1713535868346,-3104.32,0.00015273,2]
[322939430,1713535868356,-500.0,0.00015273,2]
[322939431,1713535868366,-500.0,0.00015273,2]
[322939432,1713535868375,-1858.8,0.00015273,2]
[322939433,1713535868384,-500.0,0.00015273,2]
[322939434,1713535868394,-500.0,0.00015273,2]
[322939435,1713535868404,-2809.8,0.00015273,2]
[322939436,1713535868413,-500.0,0.00015273,2]
[322939437,1713535868422,-968.62,0.00015273,2]
[322939438,1713535868431,-500.0,0.00015273,2]
[322939439,1713535868440,-3566.65,0.00015273,2]
[322939440,1713535868449,-3088.13,0.00015273,2]
[322939441,1713535868458,-2073.56,0.00015273,2]
[322939442,1713535868468,-4021.21,0.00015273,2]
[322939443,1713535868477,-500.0,0.00015273,2]
[322939444,1713535868487,-4749.78,0.00015273,2]
[322939445,1713535868497,-3873.23,0.00015273,2]
[322939446,1713535868506,-2721.08,0.00015273,2]
[322939447,1713535868515,-3323.51,0.00015273,2]
[322939448,1713535868524,-4524.53,0.00015273,2]
[322939449,1713535868534,-647.73760182,0.00015273,2]
[322939450,1713535868543,-2991.79,0.00015273,2]
[322939451,1713535868559,-7984.31474331,0.00015323,2]
[322939452,1713535868568,-189.2393687,0.00015349,2]
[322939453,1713535868577,-158.19722796,0.00015357,2]
[322939454,1713535868587,-244.38,0.00015375,2]
[322939455,1713535868597,-347.954734,0.000154,2]
[322939456,1713535868610,-1000.0,0.00015438,2]
[322939457,1713535868620,-1000.0,0.00015438,2]
[322939458,1713535868629,-1000.0,0.00015438,2]
[322939459,1713535868639,-1000.0,0.00015438,2]
[322939460,1713535868648,-1000.0,0.00015438,2]
[322939461,1713535868658,-1000.0,0.00015438,2]
[322939462,1713535868667,-1000.0,0.00015438,2]
[322939463,1713535868679,-1000.0,0.00015438,2]
[322939464,1713535868688,-1000.0,0.00015438,2]
[322939465,1713535868698,-1000.0,0.00015438,2]
[322939466,1713535868707,-1000.0,0.00015438,2]
[322939467,1713535868717,-1000.0,0.00015438,2]
[322939468,1713535868726,-1000.0,0.00015438,2]
[322939469,1713535868736,-619.8262,0.00015438,2]
[322939470,1713535868746,-2403.87,0.00015444,2]
[322939471,1713535868755,-1577.19,0.00015444,2]
[322939472,1713535868765,-3712.45,0.00015444,2]
[322939473,1713535868775,-1374.52,0.00015444,2]
[322939474,1713535868784,-500.0,0.00015444,2]
[322939475,1713535868794,-2444.18,0.00015444,2]
[322939476,1713535868805,-3441.39,0.00015444,2]
[322939477,1713535868816,-5832.13,0.00015445,2]
[322939478,1713535868825,-631.42,0.00015445,2]
[322939479,1713535868834,-1754.68,0.00015445,2]
[322939480,1713535868844,-5404.65,0.00015445,2]
[322939481,1713535868853,-5488.45,0.00015445,2]
[322939482,1713535868863,-5979.12,0.00015445,2]
[322939483,1713535868873,-7142.07,0.00015445,2]
[322939484,1713535868882,-12481.98,0.00015445,2]
[322939485,1713535868892,-2980.24,0.00015445,2]
[322939486,1713535868901,-4694.82,0.00015445,2]
[322939487,1713535868910,-8969.62,0.00015445,2]
[322939488,1713535868920,-5094.98,0.00015445,2]
[322939489,1713535868929,-2471.99,0.00015445,2]
[322939490,1713535868939,-2187.88,0.00015445,2]
[322939491,1713535868948,-37740.58,0.00015445,2]
[322939492,1713535868958,-7375.62,0.00015445,2]
[322939493,1713535868967,-2736.48,0.00015445,2]
[322939494,1713535868976,-1663.38,0.00015445,2]
[322939495,1713535868987,-13386.95,0.00015445,2]
[322939496,1713535868996,-5691.95,0.00015445,2]
[322939497,1713535869005,-3500.75,0.00015445,2]
[322939498,1713535869014,-3112.03,0.00015445,2]
[322939499,1713535869023,-1600.55,0.00015445,2]
[322939500,1713535869032,-15522.32,0.00015445,2]
[322939501,1713535869041,-6009.88,0.00015445,2]
[322939502,1713535869051,-988.64,0.00015445,2]
[322939503,1713535869063,-8987.15,0.00015445,2]
[322939504,1713535869072,-9398.74,0.00015445,2]
[322939505,1713535869081,-1928.15,0.00015445,2]
[322939506,1713535869090,-6022.82,0.00015445,2]
[322939507,1713535869099,-3622.76,0.00015445,2]
[322939508,1713535869108,-500.0,0.00015445,2]
[322939509,1713535869117,-12113.02,0.00015445,2]
[322939510,1713535869126,-4147.36,0.00015445,2]
[322939511,1713535869135,-10831.22,0.00015445,2]
[322939512,1713535869145,-4216.37,0.00015445,2]
[322939513,1713535869154,-8530.38,0.00015445,2]
[322939514,1713535869162,-500.0,0.00015445,2]
[322939515,1713535869173,-17399.69,0.00015445,2]
[322939516,1713535869182,-3885.45,0.00015445,2]
[322939517,1713535869192,-4166.13,0.00015445,2]
[322939518,1713535869201,-15747.25,0.00015445,2]
[322939519,1713535869210,-831.31,0.00015445,2]
[322939520,1713535869219,-31097.27,0.00015445,2]
[322939521,1713535869228,-2526.88,0.00015445,2]
[322939522,1713535869238,-10307.68,0.00015445,2]
[322939523,1713535869247,-10339.08,0.00015445,2]
[322939524,1713535869256,-9147.6,0.00015445,2]
[322939525,1713535869266,-4874.02,0.00015445,2]
[322939526,1713535869275,-500.0,0.00015445,2]
[322939527,1713535869284,-3109.85,0.00015445,2]
[322939528,1713535869294,-4832.79,0.00015445,2]
[322939529,1713535869306,-12307.04,0.00015445,2]
[322939530,1713535869315,-8517.97,0.00015445,2]
[322939531,1713535869324,-19162.32,0.00015445,2]
[322939532,1713535869333,-500.0,0.00015445,2]
[322939533,1713535869342,-2052.23,0.00015445,2]
[322939534,1713535869351,-2721.28,0.00015445,2]
[322939535,1713535869359,-4812.2,0.00015445,2]
[322939536,1713535869369,-500.0,0.00015446,2]
[322939537,1713535869378,-500.0,0.00015446,2]
[322939538,1713535869387,-500.0,0.00015446,2]
[322939539,1713535869396,-1256.34,0.00015446,2]
[322939540,1713535869405,-2015.01,0.00015446,2]
[322939541,1713535869414,-500.0,0.00015446,2]
[322939542,1713535869423,-1149.65,0.00015446,2]
[322939543,1713535869432,-500.0,0.00015446,2]
[322939544,1713535869441,-1137.6,0.00015446,2]
[322939545,1713535869451,-500.0,0.00015446,2]
[322939546,1713535869461,-500.0,0.00015446,2]
[322939547,1713535869470,-500.0,0.00015446,2]
[322939548,1713535869480,-1124.18,0.00015446,2]
[322939549,1713535869489,-2664.07,0.00015446,2]
[322939550,1713535869498,-500.0,0.00015446,2]
[322939551,1713535869507,-500.0,0.00015446,2]
[322939552,1713535869516,-3029.39,0.00015446,2]
[322939553,1713535869525,-665.57,0.00015446,2]
[322939554,1713535869534,-801.94,0.00015446,2]
[322939555,1713535869543,-1036.23,0.00015446,2]
[322939556,1713535869554,-931.09,0.00015446,2]
[322939557,1713535869564,-500.0,0.00015446,2]
[322939558,1713535869574,-1570.47,0.00015446,2]
[322939559,1713535869583,-2368.82,0.00015446,2]
[322939560,1713535869594,-500.0,0.00015446,2]
[322939561,1713535869604,-997.98,0.00015446,2]
[322939562,1713535869614,-500.0,0.00015446,2]
[322939563,1713535869623,-2220.63,0.00015446,2]
[322939564,1713535869633,-500.0,0.00015446,2]
[322939565,1713535869643,-500.0,0.00015446,2]
[322939566,1713535869653,-500.0,0.00015446,2]
[322939567,1713535869662,-500.0,0.00015446,2]
[322939568,1713535869672,-2161.61,0.00015446,2]
[322939569,1713535869681,-500.0,0.00015446,2]
[322939570,1713535869691,-3793.8,0.00015446,2]
[322939571,1713535869701,-585.07,0.00015446,2]
[322939572,1713535869710,-500.0,0.00015446,2]
[322939573,1713535869719,-510.92,0.00015446,2]
[322939574,1713535869729,-500.0,0.00015446,2]
[322939575,1713535869739,-3148.54,0.00015446,2]
[322939576,1713535869748,-1402.93,0.00015446,2]
[322939577,1713535869758,-500.0,0.00015446,2]
[322939578,1713535869767,-1589.6,0.00015446,2]
[322939579,1713535869777,-500.0,0.00015446,2]
[322939580,1713535869786,-551.43,0.00015446,2]
[322939581,1713535869796,-4646.9,0.00015446,2]
[322939582,1713535869809,-500.0,0.00015446,2]
[322939583,1713535869818,-2812.43,0.00015446,2]
[322939584,1713535869827,-2003.36,0.00015446,2]
[322939585,1713535869836,-500.0,0.00015446,2]
[322939586,1713535869846,-580.17,0.00015446,2]
[322939587,1713535869855,-840.11,0.00015446,2]
[322939588,1713535869864,-500.0,0.00015446,2]
[322939589,1713535869873,-500.0,0.00015446,2]
[322939590,1713535869882,-1725.14,0.00015446,2]
[322939591,1713535869891,-647.65,0.00015446,2]
[322939592,1713535869900,-1204.49,0.00015446,2]
[322939593,1713535869909,-756.26,0.00015446,2]
[322939594,1713535869918,-500.0,0.00015446,2]
[322939595,1713535869927,-4237.22,0.00015446,2]
[322939596,1713535869937,-1613.07,0.00015446,2]
[322939597,1713535869946,-500.0,0.00015446,2]
[322939598,1713535869955,-500.0,0.00015446,2]
[322939599,1713535869964,-999.76,0.00015446,2]
[322939600,1713535869973,-5139.11,0.00015446,2]
[322939601,1713535869982,-500.0,0.00015446,2]
[322939602,1713535869991,-857.27,0.00015446,2]
[322939603,1713535870001,-500.0,0.00015446,2]
[322939604,1713535870011,-801.44,0.00015446,2]
[322939605,1713535870020,-500.0,0.00015446,2]
[322939606,1713535870029,-3004.32,0.00015446,2]
[322939607,1713535870039,-4097.05,0.00015446,2]
[322939608,1713535870048,-500.0,0.00015446,2]
[322939609,1713535870063,-500.0,0.00015446,2]
[322939610,1713535870072,-729.02,0.00015446,2]
[322939611,1713535870082,-500.0,0.00015446,2]
[322939612,1713535870091,-500.0,0.00015446,2]
[322939613,1713535870100,-500.75,0.00015446,2]
[322939614,1713535870109,-2863.26,0.00015446,2]
[322939615,1713535870118,-3464.11,0.00015446,2]
[322939616,1713535870129,-722.32,0.00015446,2]
[322939617,1713535870139,-1488.66,0.00015446,2]
[322939618,1713535870148,-1035.83,0.00015446,2]
[322939619,1713535870159,-500.0,0.00015446,2]
[322939620,1713535870168,-2428.17,0.00015446,2]
[322939621,1713535870178,-1724.86,0.00015446,2]
[322939622,1713535870186,-1351.6,0.00015446,2]
[322939623,1713535870195,-1341.18,0.00015446,2]
[322939624,1713535870205,-500.0,0.00015446,2]
[322939625,1713535870214,-500.0,0.00015446,2]
[322939626,1713535870224,-556.44649992,0.00015446,2]
[322939627,1713535870233,-749.97,0.00015446,2]
[322939628,1713535870242,-1315.22,0.00015446,2]
[322939629,1713535870251,-691.75,0.00015446,2]
[322939630,1713535870260,-531.94576728,0.00015446,2]
[322939631,1713535870270,-500.0,0.00015446,2]
[322939632,1713535870279,-754.08,0.00015446,2]
[322939633,1713535870288,-500.0,0.00015446,2]
[322939634,1713535870297,-3789.86,0.00015446,2]
[322939635,1713535870309,-1084.1,0.00015446,2]
[322939636,1713535870318,-1325.33,0.00015446,2]
[322939637,1713535870327,-500.0,0.00015446,2]
[322939638,1713535870337,-864.76,0.00015446,2]
[322939639,1713535870346,-755.03,0.00015446,2]
[322939640,1713535870357,-500.0,0.00015446,2]
[322939641,1713535870366,-1284.33,0.00015446,2]
[322939642,1713535870375,-1801.64,0.00015446,2]
[322939643,1713535870385,-500.0,0.00015446,2]
[322939644,1713535870395,-999.93,0.00015446,2]
[322939645,1713535870405,-1227.7,0.00015446,2]
[322939646,1713535870414,-500.0,0.00015446,2]
[322939647,1713535870424,-3417.17,0.00015446,2]
[322939648,1713535870433,-542.61,0.00015446,2]
[322939649,1713535870442,-500.0,0.00015446,2]
[322939650,1713535870452,-2071.34,0.00015446,2]
[322939651,1713535870462,-500.0,0.00015446,2]
[322939652,1713535870471,-1502.04,0.00015446,2]
[322939653,1713535870481,-932.1,0.00015446,2]
[322939654,1713535870490,-500.0,0.00015446,2]
[322939655,1713535870500,-500.0,0.00015446,2]
[322939656,1713535870509,-1615.58,0.00015446,2]
[322939657,1713535870519,-716.0,0.00015446,2]
[322939658,1713535870530,-500.0,0.00015446,2]
[322939659,1713535870539,-1008.46,0.00015446,2]
[322939660,1713535870549,-598.31,0.00015446,2]
[322939661,1713535870562,-500.0,0.00015446,2]
[322939662,1713535870572,-500.0,0.00015446,2]
[322939663,1713535870582,-500.0,0.00015446,2]
[322939664,1713535870591,-827.44,0.00015446,2]
[322939665,1713535870602,-500.0,0.00015446,2]
[322939666,1713535870612,-2578.47,0.00015446,2]
[322939667,1713535870621,-1186.64,0.00015446,2]
[322939668,1713535870631,-500.0,0.00015446,2]
[322939669,1713535870641,-500.0,0.00015446,2]
[322939670,1713535870651,-500.0,0.00015446,2]
[322939671,1713535870660,-500.0,0.00015446,2]
[322939672,1713535870670,-991.89,0.00015446,2]
[322939673,1713535870680,-500.0,0.00015446,2]
[322939674,1713535870690,-500.0,0.00015446,2]
[322939675,1713535870699,-500.0,0.00015446,2]
[322939676,1713535870708,-1604.09,0.00015446,2]
[322939677,1713535870718,-3094.82,0.00015446,2]
[322939678,1713535870727,-742.65,0.00015446,2]
[322939679,1713535870737,-494.1192619,0.00015446,2]
[322939680,1713535870746,-500.0,0.00015446,2]
[322939681,1713535870756,-500.0,0.00015446,2]
[322939682,1713535870765,-500.0,0.00015446,2]
[322939683,1713535870775,-418.50400978,0.00015446,2]
[322939684,1713535870784,-500.0,0.00015446,2]
[322939685,1713535870794,-500.0,0.00015446,2]
[322939686,1713535870807,-868.39,0.00015446,2]
[322939687,1713535870817,-500.0,0.00015446,2]
[322939688,1713535870827,-1410.74,0.00015446,2]
[322939689,1713535870837,-1811.26,0.00015446,2]
[322939690,1713535870846,-500.0,0.00015446,2]
[322939691,1713535870856,-552.6,0.00015446,2]
[322939692,1713535870866,-2908.9,0.00015446,2]
[322939693,1713535870876,-1547.07,0.00015446,2]
[322939694,1713535870886,-516.05,0.00015446,2]
[322939695,1713535870896,-500.0,0.00015446,2]
[322939696,1713535870906,-500.0,0.00015446,2]
[322939697,1713535870916,-782.08,0.00015446,2]
[322939698,1713535870926,-1183.76,0.00015446,2]
[322939699,1713535870935,-774.4,0.00015446,2]
[322939700,1713535870946,-500.0,0.00015446,2]
[322939701,1713535870955,-500.0,0.00015446,2]
[322939702,1713535870965,-500.0,0.00015446,2]
[322939703,1713535870974,-903.17,0.00015446,2]
[322939704,1713535870984,-500.0,0.00015446,2]
[322939705,1713535870993,-2298.11,0.00015446,2]
[322939706,1713535871002,-978.58,0.00015446,2]
[322939707,1713535871012,-2334.57,0.00015446,2]
[322939708,1713535871022,-3374.87,0.00015446,2]
[322939709,1713535871031,-500.0,0.00015446,2]
[322939710,1713535871041,-1014.08,0.00015446,2]
[322939711,1713535871051,-500.0,0.00015446,2]
[322939712,1713535871063,-2018.16,0.00015446,2]
[322939713,1713535871073,-1359.3,0.00015446,2]
[322939714,1713535871082,-500.0,0.00015446,2]
[322939715,1713535871092,-1637.81,0.00015446,2]
[322939716,1713535871101,-500.0,0.00015446,2]
[322939717,1713535871111,-500.0,0.00015446,2]
[322939718,1713535871121,-500.0,0.00015446,2]
[322939719,1713535871131,-1971.56,0.00015446,2]
[322939720,1713535871141,-1145.46,0.00015446,2]
[322939721,1713535871151,-5560.1,0.00015446,2]
[322939722,1713535871162,-2291.26,0.00015446,2]
[322939723,1713535871171,-1529.74,0.00015446,2]
[322939724,1713535871181,-500.0,0.00015446,2]
[322939725,1713535871191,-500.0,0.00015446,2]
[322939726,1713535871202,-500.0,0.00015446,2]
[322939727,1713535871211,-1163.0,0.00015446,2]
[322939728,1713535871222,-950.14,0.00015446,2]
[322939729,1713535871232,-500.0,0.00015446,2]
[322939730,1713535871242,-594.21,0.00015446,2]
[322939731,1713535871252,-500.0,0.00015446,2]
[322939732,1713535871262,-517.6,0.00015446,2]
[322939733,1713535871272,-500.0,0.00015446,2]
[322939734,1713535871282,-500.0,0.00015446,2]
[322939735,1713535871292,-619.3,0.00015446,2]
[322939736,1713535871302,-500.0,0.00015446,2]
[322939737,1713535871317,-712.46,0.00015446,2]
[322939738,1713535871327,-693.94,0.00015446,2]
[322939739,1713535871337,-1133.39,0.00015446,2]
[322939740,1713535871347,-589.62831904,0.00015446,2]
[322939741,1713535871358,-833.04,0.00015446,2]
[322939742,1713535871368,-2162.58,0.00015446,2]
[322939743,1713535871378,-500.0,0.00015446,2]
[322939744,1713535871389,-5267.24,0.00015446,2]
[322939745,1713535871399,-1879.43,0.00015446,2]
[322939746,1713535871410,-1106.88,0.00015446,2]
[322939747,1713535871420,-713.55,0.00015446,2]
[322939748,1713535871430,-500.0,0.00015446,2]
[322939749,1713535871440,-500.0,0.00015446,2]
[322939750,1713535871450,-2106.2,0.00015446,2]
[322939751,1713535871460,-500.0,0.00015446,2]
[322939752,1713535871472,-500.0,0.00015446,2]
[322939753,1713535871482,-1460.57,0.00015446,2]
[322939754,1713535871493,-500.0,0.00015446,2]
[322939755,1713535871503,-341.14,0.00015446,2]
[322939756,1713535871513,-500.0,0.00015446,2]
[322939757,1713535871523,-3217.97,0.00015446,2]
[322939758,1713535871534,-1246.63,0.00015446,2]
[322939759,1713535871544,-891.12,0.00015446,2]
[322939760,1713535871554,-500.0,0.00015446,2]
[322939761,1713535871573,-500.0,0.00015446,2]
[322939762,1713535871584,-564.97186144,0.00015446,2]
[322939763,1713535871595,-500.0,0.00015446,2]
[322939764,1713535871610,-504.8,0.00015446,2]
[322939765,1713535871621,-500.0,0.00015446,2]
[322939766,1713535871631,-500.0,0.00015446,2]
[322939767,1713535871643,-830.87,0.00015446,2]
[322939768,1713535871654,-1048.12,0.00015446,2]
[322939769,1713535871664,-509.72,0.00015446,2]
[322939770,1713535871675,-975.66,0.00015446,2]
[322939771,1713535871687,-1798.67,0.00015446,2]
[322939772,1713535871697,-500.0,0.00015446,2]
[322939773,1713535871707,-500.0,0.00015446,2]
[322939774,1713535871717,-1934.62,0.00015446,2]
[322939775,1713535871727,-5247.18,0.00015446,2]
[322939776,1713535871738,-1857.03,0.00015446,2]
[322939777,1713535871747,-1843.98,0.00015446,2]
[322939778,1713535871757,-500.0,0.00015446,2]
[322939779,1713535871767,-1291.52,0.00015446,2]
[322939780,1713535871777,-500.0,0.00015446,2]
[322939781,1713535871787,-500.0,0.00015446,2]
[322939782,1713535871797,-15480.63,0.00015446,2]
[322939783,1713535871812,-849.57,0.00015446,2]
[322939784,1713535871822,-998.12,0.00015446,2]
[322939785,1713535871832,-500.0,0.00015446,2]
[322939786,1713535871842,-670.98,0.00015446,2]
[322939787,1713535871852,-4624.68,0.00015446,2]
[322939788,1713535871862,-2760.35,0.00015446,2]
[322939789,1713535871872,-500.0,0.00015446,2]
[322939790,1713535871882,-500.0,0.00015446,2]
[322939791,1713535871892,-500.0,0.00015446,2]
[322939792,1713535871903,-2331.47,0.00015446,2]
[322939793,1713535871913,-13562.06,0.00015446,2]
[322939794,1713535871923,-666.01,0.00015446,2]
[322939795,1713535871934,-913.31,0.00015446,2]
[322939796,1713535871943,-500.0,0.00015446,2]
[322939797,1713535871953,-500.0,0.00015446,2]
[322939798,1713535871963,-500.0,0.00015446,2]
[322939799,1713535871973,-724.4,0.00015446,2]
[322939800,1713535871983,-500.0,0.00015446,2]
[322939801,1713535871993,-500.0,0.00015446,2]
[322939802,1713535872003,-7003.47,0.00015446,2]
[322939803,1713535872013,-2634.21,0.00015446,2]
[322939804,1713535872022,-500.0,0.00015446,2]
[322939805,1713535872033,-500.0,0.00015446,2]
[322939806,1713535872042,-500.0,0.00015446,2]
[322939807,1713535872052,-842.1,0.00015446,2]
[322939808,1713535872068,-1709.83,0.00015446,2]
[322939809,1713535872078,-3554.74,0.00015446,2]
[322939810,1713535872088,-500.0,0.00015446,2]
[322939811,1713535872098,-500.0,0.00015446,2]
[322939812,1713535872108,-1276.41,0.00015446,2]
[322939813,1713535872118,-1881.59,0.00015446,2]
[322939814,1713535872128,-399.22991267,0.00015446,2]
[322939815,1713535872138,-660.64,0.00015446,2]
[322939816,1713535872148,-500.0,0.00015446,2]
[322939817,1713535872158,-500.0,0.00015446,2]
[322939818,1713535872167,-591.99,0.00015446,2]
[322939819,1713535872177,-11830.29,0.00015446,2]
[322939820,1713535872187,-518.61,0.00015446,2]
[322939821,1713535872198,-500.0,0.00015446,2]
[322939822,1713535872207,-500.0,0.00015446,2]
[322939823,1713535872218,-596.19,0.00015446,2]
[322939824,1713535872228,-500.0,0.00015446,2]
[322939825,1713535872238,-1586.61,0.00015446,2]
[322939826,1713535872248,-500.0,0.00015446,2]
[322939827,1713535872258,-500.0,0.00015446,2]
[322939828,1713535872268,-21084.37,0.00015446,2]
[322939829,1713535872277,-501.63,0.00015446,2]
[322939830,1713535872287,-500.0,0.00015446,2]
[322939831,1713535872296,-4168.67,0.00015446,2]
[322939832,1713535872310,-500.0,0.00015446,2]
[322939833,1713535872320,-1051.59,0.00015446,2]
[322939834,1713535872330,-1632.93,0.00015446,2]
[322939835,1713535872339,-745.68,0.00015446,2]
[322939836,1713535872349,-249.43494994,0.00015446,2]
[322939837,1713535872359,-1278.38,0.00015446,2]
[322939838,1713535872369,-624.95,0.00015446,2]
[322939839,1713535872379,-807.02,0.00015446,2]
[322939840,1713535872389,-102471.52,0.00015446,2]
[322939841,1713535872398,-500.0,0.00015446,2]
[322939842,1713535872408,-2794.61,0.00015446,2]
[322939843,1713535872419,-2514.92,0.00015446,2]
[322939844,1713535872428,-2394.7,0.00015446,2]
[322939845,1713535872438,-807.66,0.00015446,2]
[322939846,1713535872448,-500.0,0.00015446,2]
[322939847,1713535872458,-500.0,0.00015446,2]
[322939848,1713535872468,-4623.15,0.00015446,2]
[322939849,1713535872478,-191.39,0.00015446,2]
[322939850,1713535872488,-500.0,0.00015446,2]
[322939851,1713535872498,-1840.41,0.00015446,2]
[322939852,1713535872507,-1421.71,0.00015446,2]
[322939853,1713535872517,-1165.58,0.00015446,2]
[322939854,1713535872527,-500.0,0.00015446,2]
[322939855,1713535872537,-503.16485639,0.00015446,2]
[322939856,1713535872547,-500.0,0.00015446,2]
[322939857,1713535872560,-5682.43,0.00015446,2]
[322939858,1713535872570,-500.0,0.00015446,2]
[322939859,1713535872580,-500.0,0.00015446,2]
[322939860,1713535872590,-500.0,0.00015446,2]
[322939861,1713535872604,-1198.64,0.00015446,2]
[322939862,1713535872879,-1146.28,0.00015446,2]
[322939863,1713535872888,-7698.24,0.00015446,2]
[322939864,1713535872899,-638.93,0.00015446,2]
[322939865,1713535872909,-1719.9,0.00015446,2]
[322939866,1713535872918,-500.0,0.00015446,2]
[322939867,1713535872929,-613.08953575,0.00015446,2]
[322939868,1713535872939,-5472.51,0.00015446,2]
[322939869,1713535872949,-1577.17,0.00015446,2]
[322939870,1713535872959,-500.0,0.00015446,2]
[322939871,1713535872970,-500.0,0.00015446,2]
[322939872,1713535872979,-552.22,0.00015446,2]
[322939873,1713535872989,-500.0,0.00015446,2]
[322939874,1713535873000,-8996.02,0.00015446,2]
[322939875,1713535873009,-1200.96,0.00015446,2]
[322939876,1713535873018,-500.0,0.00015446,2]
[322939877,1713535873028,-2212.07,0.00015446,2]
[322939878,1713535873037,-636.57,0.00015446,2]
[322939879,1713535873047,-500.37635961,0.00015446,2]
[322939880,1713535873060,-500.0,0.00015446,2]
[322939881,1713535873070,-500.0,0.00015446,2]
[322939882,1713535873080,-500.0,0.00015446,2]
[322939883,1713535873089,-4721.47,0.00015446,2]